bitfinex/quotes_ETHUSD_20241123
["timestamp","ask_amount","ask_price","bid_price","bid_amount"]
[1732349223238,0.00325037,3330.7,3330.4,0.2985]
[1732349223439,0.00325037,3330.7,3330.6,0.05140522]
[1732349224032,0.00325037,3330.7,3330.4,0.2985]
[1732349224204,0.00325037,3330.7,3330.6,0.05140522]
[1732349224429,0.00325037,3330.7,3330.5,0.05144294]
[1732349224607,0.00325037,3330.7,3330.6,0.05140522]
[1732349225008,0.00325037,3330.7,3330.4,0.2985]
[1732349225336,0.00325037,3330.7,3330.5,0.05151974]
[1732349227154,0.00325037,3330.7,3330.3,3.0]
[1732349227319,0.00325037,3330.7,3330.6,0.04987336]
[1732349227512,0.00325037,3330.7,3330.4,0.2985]
[1732349227714,0.00325037,3330.7,3330.6,0.04987336]
[1732349228050,0.00325037,3330.7,3330.5,0.34841108]
[1732349228206,0.00325037,3330.7,3330.6,0.04987336]
[1732349228834,0.00325037,3330.7,3330.6,0.34837336]
[1732349230955,0.00325037,3330.7,3330.6,0.04987336]
[1732349231125,0.00325037,3330.7,3330.4,0.2985]
[1732349231324,0.00325037,3330.7,3330.6,0.04979756]
[1732349231652,0.75815037,3330.7,3330.4,0.2985]
[1732349231811,0.75815037,3330.7,3330.6,0.04977196]
[1732349232006,0.75815037,3330.7,3330.2,0.2985]
[1732349232661,0.75815037,3330.7,3330.3,0.04985952]
[1732349233015,0.75815037,3330.7,3330.3,0.2985]
[1732349233211,0.75815037,3330.7,3330.4,0.0497962]
[1732349234552,0.75815037,3330.7,3330.5,0.04975848]
[1732349234761,0.75815037,3330.7,3330.2,0.2985]
[1732349234905,0.75815037,3330.7,3330.6,0.04972076]
[1732349235105,0.75815037,3330.7,3330.1,0.2985]
[1732349235341,0.75815037,3330.7,3330.6,0.04970796]
[1732349235535,0.75815037,3330.7,3330.1,0.2985]
[1732349235741,0.75815037,3330.7,3330.6,0.04969516]
[1732349235943,0.75815037,3330.7,3330.1,0.2985]
[1732349236121,0.75815037,3330.7,3330.6,0.04969743]
[1732349236341,0.75815037,3330.7,3330.2,0.2985]
[1732349236566,0.75815037,3330.7,3330.6,0.04969743]
[1732349236759,0.75815037,3330.7,3329.7,0.2985]
[1732349236917,0.75815037,3330.7,3330.6,0.04785987]
[1732349237109,0.75815037,3330.7,3329.7,0.65991022]
[1732349237312,0.75815037,3330.7,3330.6,0.04785987]
[1732349237559,0.75815037,3330.7,3329.7,0.65991022]
[1732349237864,0.75815037,3330.7,3330.6,0.04785987]
[1732349237865,0.45935037,3330.7,3330.6,0.04785987]
[1732349238027,0.45935037,3330.7,3329.9,0.2985]
[1732349238231,0.45935037,3330.7,3330.6,0.04785987]
[1732349238447,0.45935037,3330.7,3329.9,0.2985]
[1732349238641,0.45935037,3330.7,3330.6,0.04785987]
[1732349239268,0.45935037,3330.7,3330.0,0.2985]
[1732349239412,0.45935037,3330.7,3330.6,0.04784707]
[1732349239615,0.45935037,3330.7,3330.0,0.2985]
[1732349239816,0.45935037,3330.7,3330.6,0.04784707]
[1732349240067,0.45935037,3330.7,3329.7,0.2985]
[1732349240356,0.45935037,3330.7,3329.9,0.2985]
[1732349240861,0.45935037,3330.7,3330.0,0.04805986]
[1732349241560,0.45935037,3330.7,3329.7,0.2985]
[1732349241733,0.45935037,3330.7,3330.1,0.04802214]
[1732349241932,0.45935037,3330.7,3329.7,0.2985]
[1732349242444,0.45935037,3330.7,3329.8,0.04653584]
[1732349243362,0.83323546,3330.6,3329.8,0.04653584]
[1732349243564,0.83323546,3330.6,3329.7,0.2985]
[1732349243771,0.7957,3330.5,3329.9,0.04468975]
[1732349243928,0.7957,3330.5,3329.1,0.59906025]
[1732349243929,0.7957,3330.3,3329.1,3.0]
[1732349244128,0.7957,3329.7,3328.1,0.67304664]
[1732349244394,0.7957,3329.5,3328.2,0.36141022]
[1732349244526,0.03754749,3329.4,3328.2,0.36141022]
[1732349244957,0.7957,3329.3,3328.2,0.36141022]
[1732349245268,0.7957,3329.3,3328.2,1.12371022]
[1732349245970,0.03755045,3329.2,3328.2,1.12371022]
[1732349246268,0.7957,3329.1,3328.2,1.12371022]
[1732349246577,0.03755229,3329.0,3328.2,0.36141022]
[1732349246869,0.55,3328.7,3327.3,0.7623]
[1732349247029,0.7957,3328.5,3327.2,0.36141022]
[1732349247229,0.03756329,3328.4,3327.2,0.36141022]
[1732349248375,0.03756329,3328.4,3327.3,3.0]
[1732349248674,0.03756329,3328.4,3327.4,0.36141022]
[1732349248834,0.7957,3328.3,3327.5,0.2985]
[1732349249033,0.24975584,3328.8,3326.6,0.36141022]
[1732349249034,0.55,3328.0,3326.6,0.36141022]
[1732349249344,0.7957,3327.8,3326.6,0.36141022]
[1732349249547,0.03756802,3327.7,3326.6,0.36141022]
[1732349249745,0.03756802,3327.7,3326.7,0.33953479]
[1732349250272,0.7957,3327.6,3326.7,0.04103479]
[1732349250470,0.03757068,3327.5,3326.7,0.04103479]
[1732349250781,0.03757068,3327.5,3326.8,0.04113176]
[1732349250988,1.3457,3327.4,3326.5,0.2985]
[1732349251151,0.7957,3327.2,3326.9,0.03815142]
[1732349251349,0.7957,3327.2,3326.1,0.2985]
[1732349251679,0.7957,3327.2,3327.0,0.03807224]
[1732349251862,0.7957,3327.2,3326.1,0.2985]
[1732349252234,0.03757589,3327.1,3326.2,0.03819796]
[1732349252478,0.7957,3327.0,3326.3,0.2985]
[1732349252775,0.03757774,3326.9,3326.4,0.03827856]
[1732349252934,0.03757774,3326.9,3325.7,0.7623]
[1732349253137,0.7957,3327.0,3326.5,0.03824075]
[1732349253443,0.7957,3327.0,3325.7,0.7623]
[1732349253753,0.7957,3327.0,3325.8,0.03853111]
[1732349254231,0.7957,3327.0,3325.9,3.0]
[1732349254649,0.7957,3327.0,3326.0,0.03845547]
[1732349255871,0.7957,3327.0,3326.1,0.71338081]
[1732349256088,0.7957,3327.0,3326.1,3.71338081]
[1732349256293,0.7957,3327.0,3326.2,0.0383969]
[1732349256897,0.7957,3327.9,3326.5,3.0]
[1732349257102,0.7957,3327.9,3326.7,3.0]
[1732349257270,0.7957,3327.9,3326.9,3.0]
[1732349257471,0.03756645,3327.8,3327.0,0.03815845]
[1732349257684,0.7957,3327.9,3326.5,0.7623]
[1732349257890,0.03756881,3327.8,3327.0,3.0]
[1732349258207,0.7957,3327.7,3327.1,0.03686153]
[1732349258528,1.91000147,3328.3,3326.1,0.7623]
[1732349258529,0.7957,3327.5,3326.1,0.7623]
[1732349258825,0.7957,3327.5,3327.2,0.03677244]
[1732349258993,0.7957,3327.5,3326.3,0.71338081]
[1732349259191,0.7957,3327.5,3327.3,0.03704767]
[1732349259390,0.7957,3327.5,3326.3,0.71338081]
[1732349259595,0.7957,3327.5,3327.4,0.03700987]
[1732349259894,0.7957,3327.5,3327.4,0.0369739]
[1732349260085,0.7957,3327.5,3326.8,0.8239]
[1732349260278,0.7957,3327.5,3326.9,0.03716291]
[1732349261021,0.818,3328.1,3326.9,0.03716291]
[1732349261225,0.03756419,3328.0,3326.9,0.03716291]
[1732349261720,0.818,3327.9,3326.9,0.03716291]
[1732349261971,0.03756718,3327.8,3326.9,0.03716291]
[1732349262927,0.03756718,3327.8,3326.9,0.33566291]
[1732349263813,0.818,3327.7,3326.9,0.03716291]
[1732349263981,0.818,3327.7,3326.9,0.33566291]
[1732349264178,0.03756844,3327.6,3326.9,0.33566291]
[1732349264379,0.818,3327.7,3326.9,0.33566291]
[1732349265132,0.818,3327.7,3326.9,0.03716291]
[1732349265344,0.818,3327.7,3326.9,0.2985]
[1732349265486,0.818,3327.3,3327.0,0.03704459]
[1732349265697,0.03757803,3327.2,3325.6,0.8239]
[1732349266053,0.85557803,3327.2,3327.1,0.02747233]
[1732349266260,0.85557803,3327.2,3325.6,0.8239]
[1732349266549,0.85557803,3327.2,3325.7,0.32651462]
[1732349266899,0.85557803,3327.2,3325.9,3.2985]
[1732349267100,0.85557803,3327.2,3326.0,0.02806789]
[1732349268415,0.85557803,3327.2,3326.0,0.32656789]
[1732349270234,0.85557803,3327.2,3326.2,0.2985]
[1732349270651,0.85557803,3327.2,3326.3,0.02787696]
[1732349271406,0.818,3327.2,3326.3,0.02787696]
[1732349272144,0.818,3327.2,3326.4,0.02783914]
[1732349272311,0.818,3327.2,3326.2,0.2985]
[1732349272521,0.03757494,3327.1,3326.3,0.02887256]
[1732349273445,0.818,3327.2,3326.3,0.02887256]
[1732349273616,0.818,3327.2,3326.4,0.2985]
[1732349273823,0.818,3327.2,3326.4,0.32733204]
[1732349274009,0.818,3328.0,3326.6,0.2985]
[1732349274357,2.10100162,3328.2,3326.6,0.2985]
[1732349274358,0.818,3327.8,3326.8,0.2985]
[1732349274659,0.85557027,3327.8,3326.8,0.2985]
[1732349274818,0.85557027,3327.8,3326.9,0.02859364]
[1732349275356,0.85557027,3327.8,3326.9,0.2985]
[1732349275525,0.85557027,3327.8,3327.0,0.02867678]
[1732349275851,0.818,3327.8,3327.0,0.02867678]
[1732349276024,0.03757031,3327.7,3327.0,0.02867678]
[1732349276430,0.818,3327.6,3327.0,0.02867678]
[1732349276741,0.03757033,3327.5,3326.7,0.2985]
[1732349276970,0.03757033,3327.5,3327.1,0.02863627]
[1732349277117,0.03757033,3327.5,3326.7,0.2985]
[1732349277320,0.03757033,3327.5,3326.8,0.32725781]
[1732349277741,0.818,3327.4,3326.8,0.32725781]
[1732349278052,0.818,3327.2,3326.8,0.2985]
[1732349278208,0.03757456,3327.1,3326.8,0.2985]
[1732349278407,0.03757456,3327.1,3326.9,0.0287173]
[1732349278608,0.03757456,3327.1,3326.4,0.2985]
[1732349278864,0.03757456,3327.1,3327.0,0.02867678]
[1732349279007,0.03757456,3327.1,3326.4,0.2985]
[1732349279210,0.7658,3327.4,3327.0,0.02867678]
[1732349279414,0.7658,3327.2,3325.9,0.2985]
[1732349279643,0.03757778,3327.1,3325.9,0.2985]
[1732349279849,0.7658,3327.0,3325.9,0.2985]
[1732349280053,0.0375778,3326.9,3326.2,0.2985]
[1732349281100,0.0375778,3326.9,3325.9,0.2985]
[1732349282446,0.80337938,3327.0,3325.9,3.2985]
[1732349282641,0.80337938,3327.0,3325.9,0.63446893]
[1732349282843,0.467,3327.0,3326.1,0.2985]
[1732349283084,0.467,3327.0,3326.3,0.2985]
[1732349283284,0.03757785,3327.5,3326.3,0.2985]
[1732349283583,0.19100015,3327.7,3326.3,0.63446893]
[1732349283790,0.21010016,3327.6,3326.3,0.63446893]
[1732349284081,0.03757196,3328.0,3326.7,0.2985]
[1732349284847,0.03757196,3328.0,3326.9,0.2985]
[1732349285082,0.2323293,3328.0,3326.9,0.2985]
[1732349285388,0.2323293,3328.0,3327.0,0.02855223]
[1732349285886,0.7658,3327.9,3327.0,0.02855223]
[1732349286393,0.03756921,3327.8,3327.0,0.02855223]
[1732349286847,0.80336922,3327.9,3327.0,0.02855223]
[1732349287043,0.80336922,3327.9,3326.9,0.02825223]
[1732349287402,0.80336922,3327.9,3326.9,0.2985]
[1732349288404,0.7658,3327.7,3326.7,0.2985]
[1732349288619,0.3051522,3327.6,3326.7,0.2985]
[1732349288912,0.7658,3327.5,3326.7,0.2985]
[1732349289107,0.03757209,3327.4,3326.7,0.2985]
[1732349289472,0.03757209,3327.4,3325.6,0.91871248]
[1732349289473,0.03757209,3327.4,3326.6,0.2985]
[1732349289693,0.7658,3327.5,3326.8,0.2985]
[1732349290716,0.03757108,3327.4,3326.9,0.2985]
[1732349291027,0.7658,3327.3,3326.3,0.2985]
[1732349291307,0.7658,3327.1,3326.3,0.2985]
[1732349291518,0.03758042,3327.0,3326.3,0.2985]
[1732349292047,0.03758042,3327.0,3326.0,0.2985]
[1732349293009,0.50458042,3327.1,3326.0,3.26091958]
[1732349293181,0.03124239,3327.0,3326.0,0.2985]
[1732349293675,0.50458042,3327.1,3326.0,0.2985]
[1732349294106,0.03124239,3327.0,3326.0,0.2985]
[1732349294471,0.50458042,3327.1,3326.0,0.63446893]
[1732349294782,0.50458042,3327.1,3326.2,0.2985]
[1732349294977,0.03124239,3327.0,3326.2,0.2985]
[1732349295714,0.03124239,3327.0,3326.0,0.2985]
[1732349296069,0.7658,3326.9,3326.0,0.2985]
[1732349298881,0.7658,3326.9,3325.9,0.2985]
[1732349298882,0.03124239,3326.8,3325.9,0.2985]
[1732349299713,0.7623,3326.7,3325.9,0.2985]
[1732349300023,0.7623,3326.5,3326.0,0.2985]
[1732349300219,0.03124239,3326.4,3326.0,0.2985]
[1732349300428,0.7623,3326.3,3326.0,0.2985]
[1732349300631,0.03124239,3326.2,3326.0,0.2985]
[1732349300844,0.03124239,3326.2,3325.1,0.2985]
[1732349302518,0.7623,3326.3,3325.1,0.2985]
[1732349303060,0.7623,3326.3,3325.3,0.26725761]
[1732349303061,0.49474239,3326.3,3325.3,0.26725761]
[1732349303262,0.49474239,3326.3,3325.3,0.2985]
[1732349304257,0.49474239,3326.3,3325.3,3.2985]
[1732349304460,0.49474239,3326.3,3325.5,0.2985]
[1732349304817,1.91000147,3327.0,3325.7,0.2985]
[1732349305622,1.91000147,3327.0,3325.9,0.2985]
[1732349305960,1.91000147,3327.0,3326.1,0.2985]
[1732349306145,0.81,3326.9,3326.1,0.2985]
[1732349306662,0.81,3326.9,3326.3,0.2985]
[1732349308570,0.81,3326.9,3326.4,0.2985]
[1732349309586,0.81,3326.9,3326.0,0.2985]
[1732349313528,0.81,3326.9,3326.2,0.2985]
[1732349314124,0.7917,3327.3,3326.2,0.2985]
[1732349314338,0.7917,3327.3,3326.4,0.2985]
[1732349314737,0.7917,3327.3,3326.5,0.00194988]
[1732349315283,0.7917,3327.9,3326.7,0.2985]
[1732349315570,0.7917,3327.9,3326.9,0.2985]
[1732349316427,0.7917,3327.9,3326.7,0.2985]
[1732349317367,0.7917,3327.9,3326.5,0.00194988]
[1732349319309,0.7917,3327.9,3326.7,0.2985]
[1732349321404,0.7917,3327.9,3326.5,0.00194988]
[1732349321732,0.7917,3327.9,3326.7,0.2985]
[1732349322264,0.7917,3327.9,3326.9,0.2985]
[1732349322400,0.7917,3327.9,3327.1,0.2985]
[1732349322601,0.7917,3327.9,3327.3,0.2985]
[1732349323587,0.7917,3327.9,3327.1,0.2985]
[1732349325719,0.7917,3327.9,3327.0,0.2985]
[1732349325927,0.7917,3327.9,3327.0,3.2985]
[1732349326226,0.7917,3327.9,3327.0,3.32855241]
[1732349326885,0.7917,3327.9,3327.3,0.2985]
[1732349328311,1.91000147,3328.5,3327.5,0.2985]
[1732349328514,0.8319,3328.4,3327.5,0.2985]
[1732349328827,0.27419015,3328.3,3327.5,0.2985]
[1732349329010,0.8319,3328.4,3327.5,0.2985]
[1732349329212,0.8319,3328.4,3327.7,0.2985]
[1732349330463,0.8319,3328.4,3327.5,0.2985]
[1732349330769,0.8319,3328.4,3327.7,0.2985]
[1732349331177,0.8319,3328.4,3327.8,3.0]
[1732349331490,0.8319,3329.5,3328.3,0.2985]
[1732349331634,0.8319,3329.5,3328.5,0.2985]
[1732349332680,0.8319,3329.5,3328.0,0.8255]
[1732349332681,0.8319,3329.5,3328.1,0.2985]
[1732349332979,0.8319,3329.1,3328.3,3.0]
[1732349333132,3.01,3330.1,3328.2,3.0]
[1732349333133,0.8319,3328.7,3328.2,3.0]
[1732349333553,0.8319,3328.7,3327.4,0.85554708]
[1732349333758,0.8319,3328.7,3328.2,3.0]
[1732349333954,0.8319,3328.6,3327.4,0.85554708]
[1732349334153,0.8319,3328.6,3328.3,0.2989]
[1732349339509,0.8319,3328.6,3327.6,0.2989]
[1732349340197,0.8319,3328.6,3328.3,0.2989]
[1732349341416,0.8319,3328.6,3327.5,0.2989]
[1732349341715,0.8319,3328.6,3328.3,0.2989]
[1732349342561,1.10609015,3328.6,3328.1,0.2989]
[1732349342793,0.80719015,3328.6,3328.1,0.2989]
[1732349343111,0.27419015,3328.6,3328.1,0.2989]
[1732349343483,0.27419015,3328.6,3327.9,0.2989]
[1732349343992,0.27419015,3328.6,3328.2,0.00194988]
[1732349345685,0.7864,3328.5,3328.2,0.00194988]
[1732349347227,0.7864,3328.5,3327.8,0.2989]
[1732349347874,0.7864,3328.5,3327.7,0.2989]
[1732349348186,0.7864,3328.5,3327.7,3.2989]
[1732349348392,0.7864,3328.5,3327.7,0.2989]
[1732349348631,0.7864,3328.5,3327.7,3.2989]
[1732349348841,0.7864,3328.5,3328.1,0.2989]
[1732349349865,0.8236,3329.2,3328.1,0.2989]
[1732349350138,0.8236,3329.0,3328.2,0.2989]
[1732349350633,0.8236,3329.0,3327.5,0.58689265]
[1732349350634,0.8236,3329.0,3327.6,0.2989]
[1732349350792,1.91000147,3328.8,3328.1,0.2989]
[1732349350997,0.8236,3328.7,3328.1,0.2989]
[1732349351690,0.8236,3328.7,3327.5,0.2989]
[1732349351891,0.8236,3328.6,3327.5,0.2989]
[1732349352292,0.8236,3328.6,3328.1,0.2989]
[1732349353130,0.55,3328.3,3326.9,0.2989]
[1732349353336,0.8236,3328.2,3327.1,0.2989]
[1732349353733,0.8236,3328.2,3327.1,0.63486893]
[1732349354462,0.8236,3328.2,3327.4,0.2989]
[1732349355841,1.998,3328.0,3327.4,0.2989]
[1732349356041,0.8236,3327.9,3327.4,0.2989]
[1732349356347,0.8236,3327.9,3326.8,0.7776]
[1732349356348,0.8236,3327.9,3326.9,0.2989]
[1732349356552,0.8236,3327.9,3327.4,0.2989]
[1732349357255,0.28216,3327.8,3327.4,0.2989]
[1732349357560,0.28216,3327.8,3326.9,0.2989]
[1732349357857,0.8236,3327.9,3327.1,0.2989]
[1732349358948,0.8236,3327.9,3327.4,0.2989]
[1732349359824,1.998,3328.0,3327.4,1.1066]
[1732349360593,1.998,3328.0,3327.6,0.2989]
[1732349361795,1.998,3328.0,3327.5,0.2989]
[1732349361981,1.998,3328.0,3327.5,3.2989]
[1732349362179,1.998,3328.0,3327.6,0.2989]
[1732349362347,2.28108,3328.0,3327.6,0.2989]
[1732349362772,1.98218,3328.0,3327.1,0.8077]
[1732349363286,1.98218,3328.0,3327.2,0.2989]
[1732349364218,1.6991,3328.0,3327.2,0.2989]
[1732349364433,1.6991,3328.0,3327.6,0.2989]
[1732349368612,1.6991,3328.0,3327.8,0.2989]
[1732349370399,1.6991,3328.0,3327.7,0.2989]
[1732349370922,1.6991,3328.0,3327.7,3.2989]
[1732349371252,1.6991,3328.0,3327.7,0.2989]
[1732349371920,1.6991,3328.0,3327.7,3.2989]
[1732349373304,1.6991,3328.0,3327.7,0.2989]
[1732349373787,1.6991,3328.0,3327.7,3.2989]
[1732349373993,1.6991,3328.0,3327.7,0.2989]
[1732349374196,1.6991,3328.0,3327.7,3.2989]
[1732349375448,1.6991,3328.0,3327.5,0.2989]
[1732349375758,1.6991,3328.0,3327.8,0.2989]
[1732349377191,1.95229,3328.0,3327.5,0.2989]
[1732349377374,0.8328,3327.9,3327.5,0.2989]
[1732349377950,0.90600479,3327.8,3327.5,0.2989]
[1732349378151,0.17388048,3327.7,3327.6,0.2989]
[1732349378448,0.8328,3327.6,3326.9,0.2989]
[1732349379090,1.02406853,3327.6,3326.9,0.2989]
[1732349379351,1.02406853,3327.6,3326.7,0.2989]
[1732349380060,0.8328,3327.6,3326.7,0.2989]
[1732349380384,0.8328,3327.6,3326.7,0.63486893]
[1732349380620,0.8328,3327.6,3326.9,0.2989]
[1732349380749,0.8328,3327.6,3327.1,0.2989]
[1732349382892,0.78527067,3327.8,3327.1,0.2989]
[1732349384793,1.95229,3328.0,3327.1,0.2989]
[1732349384958,1.6991,3328.0,3327.3,0.2989]
[1732349385857,2.0843,3328.0,3327.1,0.2989]
[1732349386056,2.0843,3328.0,3327.0,3.0]
[1732349386057,2.0843,3328.0,3327.3,0.2989]
[1732349387197,2.0843,3328.0,3327.1,0.2989]
[1732349388675,2.0843,3328.0,3326.9,0.2989]
[1732349388883,2.0843,3328.0,3327.4,0.2989]
[1732349389785,0.3852,3327.9,3327.4,0.2989]
[1732349392062,0.3852,3327.9,3327.3,3.0]
[1732349392262,0.3852,3327.9,3326.9,0.2989]
[1732349392904,1.6991,3328.0,3327.1,0.2989]
[1732349392905,0.3852,3327.7,3327.1,0.2989]
[1732349393408,0.3852,3327.4,3327.1,0.2989]
[1732349393920,0.3852,3327.4,3326.5,0.7696]
[1732349394070,0.3852,3327.1,3326.6,0.2989]
[1732349395032,0.3852,3327.1,3326.2,0.2989]
[1732349396021,0.3852,3327.1,3326.4,0.2989]
[1732349396218,0.3852,3327.1,3326.6,0.2989]
[1732349397291,0.3852,3327.1,3326.4,0.2989]
[1732349397712,0.3852,3327.1,3326.6,0.2989]
[1732349398935,0.3852,3327.1,3326.4,0.2989]
[1732349399922,0.3852,3327.1,3326.6,0.2989]
[1732349400950,0.3852,3327.1,3326.4,0.2989]
[1732349402488,0.3852,3327.1,3326.5,0.2989]
[1732349403500,0.3852,3327.1,3326.2,0.2989]
[1732349404816,0.3852,3327.1,3325.9,0.2989]
[1732349405032,0.3852,3327.1,3326.1,3.2989]
[1732349405258,0.20843,3327.8,3326.1,3.2989]
[1732349405259,1.91538874,3326.7,3326.1,3.2989]
[1732349405560,0.3852,3326.6,3326.1,0.2989]
[1732349405710,0.3852,3326.5,3326.1,0.2989]
[1732349405907,0.3852,3326.5,3325.7,0.2989]
[1732349406920,0.3852,3326.5,3325.9,0.2989]
[1732349407947,0.3852,3326.5,3325.6,0.33596893]
[1732349407948,0.3852,3326.5,3325.7,0.2989]
[1732349408125,0.63441276,3326.5,3325.7,0.2989]
[1732349408629,0.3852,3326.4,3325.7,0.2989]
[1732349408827,0.3852,3326.4,3325.4,0.2989]
[1732349409021,0.3852,3326.4,3325.6,0.2989]
[1732349409662,0.3852,3326.4,3325.9,0.2989]
[1732349411155,0.3852,3326.4,3325.4,0.2989]
[1732349411647,0.3852,3326.4,3325.8,0.2989]
[1732349412868,0.3852,3326.4,3325.7,0.2989]
[1732349413029,0.3852,3326.4,3325.2,0.93118563]
[1732349413030,0.0863,3326.4,3325.6,3.0]
[1732349413213,0.0863,3326.4,3325.7,0.2989]
[1732349413551,0.24921276,3326.5,3325.7,0.2989]
[1732349415637,1.91538874,3326.7,3325.7,0.2989]
[1732349415841,1.91538874,3326.7,3325.6,0.2989]
[1732349416047,0.0863,3326.6,3325.6,0.2989]
[1732349416243,0.0863,3326.6,3325.6,3.2989]
[1732349416548,0.0863,3326.6,3325.8,0.2989]
[1732349416852,0.90701171,3326.5,3325.8,0.2989]
[1732349417163,0.0863,3326.4,3325.8,0.2989]
[1732349417526,0.0863,3326.4,3325.7,0.2989]
[1732349418513,0.0863,3326.4,3325.6,3.2989]
[1732349419150,0.0863,3326.4,3325.6,0.2989]
[1732349419450,0.0863,3325.8,3325.5,0.2989]
[1732349420513,0.0863,3325.8,3324.9,0.2989]
[1732349420842,0.90701171,3325.6,3325.1,0.2989]
[1732349421037,0.0863,3325.5,3325.1,0.2989]
[1732349421551,0.0863,3325.5,3324.9,0.2989]
[1732349422162,0.0863,3325.5,3324.5,0.2989]
[1732349422324,0.0863,3325.5,3324.5,0.60996893]
[1732349422516,0.0865,3325.4,3324.7,0.2989]
[1732349422711,0.0865,3325.4,3324.9,0.2989]
[1732349423107,0.69461171,3325.5,3324.9,0.2989]
[1732349426333,0.69461171,3325.5,3325.0,0.2989]
[1732349427367,0.69461171,3325.5,3324.7,0.2989]
[1732349428668,0.69461171,3325.5,3324.5,0.2989]
[1732349428878,0.69461171,3325.5,3324.7,0.2989]
[1732349429033,0.90701171,3325.2,3324.7,0.2989]
[1732349430077,0.90701171,3325.8,3323.9,0.776]
[1732349430078,0.90701171,3324.9,3324.8,0.2989]
[1732349430244,0.90701171,3325.2,3324.8,0.2989]
[1732349431174,0.90701171,3325.2,3324.5,0.2989]
[1732349432160,0.90701171,3325.2,3324.6,0.0495961]
[1732349432370,0.90701171,3325.5,3324.6,0.0495961]
[1732349432604,1.08841408,3325.6,3324.6,0.0495961]
[1732349432795,0.90701171,3325.6,3324.6,0.0495961]
[1732349433149,4.7091,3327.0,3324.7,1.6249]
[1732349433464,0.90701171,3325.9,3324.8,0.04969833]
[1732349433790,0.90701171,3325.9,3325.0,0.2989]
[1732349434163,0.90701171,3325.9,3325.2,0.2989]
[1732349434365,0.90701171,3325.9,3325.3,0.04947281]
[1732349435056,1.08841408,3325.9,3325.5,0.2989]
[1732349435367,1.08841408,3325.9,3325.6,0.04933137]
[1732349435961,1.08841408,3325.9,3325.5,0.2989]
[1732349436289,1.08841408,3325.9,3324.6,0.2989]
[1732349436290,0.90701171,3325.6,3324.6,0.2989]
[1732349437288,0.299,3325.5,3324.6,0.2989]
[1732349437966,0.299,3325.5,3325.1,0.2989]
[1732349439182,0.299,3325.5,3324.6,0.2989]
[1732349439897,0.299,3325.5,3325.1,0.2989]
[1732349440756,0.299,3325.5,3324.6,0.2989]
[1732349440956,0.299,3325.5,3325.1,0.2989]
[1732349442493,0.299,3325.5,3325.2,0.04961838]
[1732349442682,0.299,3325.5,3325.1,0.2989]
[1732349442879,0.299,3325.5,3325.3,0.04957962]
[1732349443080,0.299,3325.5,3325.0,0.2989]
[1732349443281,0.0001,3325.5,3325.4,0.04945606]
[1732349443480,0.0001,3325.5,3325.0,0.2989]
[1732349443895,0.0001,3325.5,3325.1,0.04959862]
[1732349444099,0.19954258,3325.8,3325.0,1.0824]
[1732349444100,0.90701171,3325.8,3325.0,1.0824]
[1732349444301,0.90701171,3325.8,3325.2,3.2989]
[1732349444675,0.90701171,3325.8,3325.3,0.04952916]
[1732349444890,0.90701171,3325.8,3325.2,0.2989]
[1732349445065,0.90701171,3325.8,3325.2,3.2989]
[1732349445411,0.90701171,3325.8,3325.3,0.34846859]
[1732349445778,0.90701171,3325.5,3325.3,0.34846859]
[1732349446094,0.90701171,3325.5,3325.3,0.2989]
[1732349446409,0.90701171,3325.5,3324.6,0.2989]
[1732349446793,0.90701171,3325.5,3324.7,0.0462922]
[1732349447218,0.90701171,3325.5,3324.8,0.2989]
[1732349447519,0.90701171,3325.5,3324.9,0.04612261]
[1732349449722,0.90701171,3325.5,3324.9,0.34502261]
[1732349450282,1.16762288,3325.8,3324.9,0.34502261]
[1732349450731,0.90701171,3325.5,3325.0,0.2989]
[1732349450931,0.90701171,3325.5,3324.9,0.2989]
[1732349451133,0.90701171,3325.5,3325.0,0.04463845]
[1732349452255,0.90701171,3325.5,3324.6,0.2989]
[1732349452693,0.90701171,3325.5,3324.7,0.04469003]
[1732349453445,0.60811171,3325.5,3324.9,0.2989]
[1732349453648,0.2544,3325.4,3325.0,0.2989]
[1732349453929,0.2544,3325.4,3325.0,0.34198405]
[1732349454315,0.2544,3325.4,3325.0,0.04308405]
[1732349454516,0.2544,3325.4,3324.6,0.2989]
[1732349454831,0.2544,3325.4,3324.7,0.04309119]
[1732349455795,0.2544,3325.4,3324.8,0.2989]
[1732349456001,1.6991,3325.0,3324.8,0.2989]
[1732349456315,1.6991,3325.0,3324.9,0.04310987]
[1732349456704,1.6991,3325.0,3324.8,0.2989]
[1732349456902,1.6991,3325.0,3324.7,3.0]
[1732349456903,1.6991,3325.0,3324.9,0.34228595]
[1732349457640,1.6991,3325.0,3324.9,0.2989]
[1732349458020,1.6991,3325.0,3324.9,0.34085475]
[1732349458534,1.6991,3325.0,3324.9,0.2989]
[1732349458854,1.6991,3325.0,3324.9,0.34085475]
[1732349459056,1.6991,3325.0,3324.9,0.04195475]
[1732349459202,1.6991,3325.0,3324.8,0.2989]
[1732349459403,1.6991,3325.0,3324.9,0.04196129]
[1732349460220,1.6991,3325.0,3324.9,0.34086129]
[1732349461109,1.6991,3325.0,3324.9,0.2989]
[1732349461402,1.6991,3325.0,3324.9,0.3408087]
[1732349461714,1.6991,3325.0,3324.9,0.2989]
[1732349462310,1.6991,3325.0,3324.9,0.3408087]
[1732349463367,1.86901,3325.0,3324.9,0.2989]
[1732349463642,1.86901,3325.0,3324.9,0.3408087]
[1732349464018,1.86901,3325.0,3324.9,0.2989]
[1732349464251,1.6991,3325.0,3324.9,0.3408087]
[1732349464548,1.6991,3325.0,3324.9,0.2989]
[1732349464752,1.6991,3325.0,3324.9,0.3408087]
[1732349465521,1.6991,3325.0,3324.9,0.0419087]
[1732349465768,1.6991,3325.0,3324.8,0.2989]
[1732349466068,1.6991,3325.0,3324.9,0.0419087]
[1732349466449,1.6991,3325.0,3324.8,0.2989]
[1732349466743,1.6991,3325.0,3324.9,0.04193876]
[1732349467125,1.6991,3325.0,3324.9,0.2989]